[Event "*** Titled Tuesday Blitz"]
[Site "Chess.com"]
[Date "2021.03.09"]
[Round "10"]
[White "maxip32"]
[Black "Oglob71"]
[Result "1/2-1/2"]
[WhiteElo "2524"]
[BlackElo "2411"]
[TimeControl "180+1"]
[EndTime "11:58:10 PST"]
[Termination "Game drawn - insufficient material"]

1. e4 {[%clk 0:03:00.9]} 1... c5 {[%clk 0:02:58.4]} 2. Nf3 {[%clk 0:03:00.9]}
2... d6 {[%clk 0:02:58.3]} 3. d4 {[%clk 0:03:00.7]} 3... cxd4 {[%clk 0:02:58.4]}
4. Nxd4 {[%clk 0:03:01.6]} 4... Nf6 {[%clk 0:02:58.6]} 5. Nc3 {[%clk 0:03:01.8]}
5... Nc6 {[%clk 0:02:59.1]} 6. Be2 {[%clk 0:02:59.7]} 6... e5 {[%clk 0:02:58.6]}
7. Nf3 {[%clk 0:02:59.9]} 7... Be7 {[%clk 0:02:58.2]} 8. O-O {[%clk 0:02:59.7]}
8... h6 {[%clk 0:02:58.6]} 9. Re1 {[%clk 0:02:59]} 9... O-O {[%clk 0:02:59]} 10.
h3 {[%clk 0:02:59.6]} 10... Be6 {[%clk 0:02:54.9]} 11. a4 {[%clk 0:02:59.1]}
11... Qa5 {[%clk 0:02:53.6]} 12. Bd2 {[%clk 0:02:40.6]} 12... Qd8 {[%clk
0:02:53.3]} 13. Be3 {[%clk 0:02:39.8]} 13... d5 {[%clk 0:02:52.3]} 14. exd5
{[%clk 0:02:37.7]} 14... Nxd5 {[%clk 0:02:52.6]} 15. Nxd5 {[%clk 0:02:36.8]}
15... Qxd5 {[%clk 0:02:53.1]} 16. Qxd5 {[%clk 0:02:28.9]} 16... Bxd5 {[%clk
0:02:53.2]} 17. Rad1 {[%clk 0:02:29.6]} 17... Rfd8 {[%clk 0:02:52.6]} 18. Nd2
{[%clk 0:02:19.3]} 18... f6 {[%clk 0:02:50.3]} 19. Bc4 {[%clk 0:02:12.7]} 19...
Kf8 {[%clk 0:02:46.5]} 20. Bxd5 {[%clk 0:02:11.5]} 20... Rxd5 {[%clk 0:02:46.5]}
21. Ne4 {[%clk 0:02:12.1]} 21... Rad8 {[%clk 0:02:45.3]} 22. Nc3 {[%clk
0:02:08.6]} 22... Rxd1 {[%clk 0:02:43.2]} 23. Rxd1 {[%clk 0:02:09.5]} 23...
Rxd1+ {[%clk 0:02:40.6]} 24. Nxd1 {[%clk 0:02:10.4]} 24... a6 {[%clk 0:02:40]}
25. Bb6 {[%clk 0:02:03.1]} 25... Kf7 {[%clk 0:02:37.2]} 26. Kf1 {[%clk
0:02:02.9]} 26... Ke6 {[%clk 0:02:36.4]} 27. Ke2 {[%clk 0:02:03]} 27... f5
{[%clk 0:02:36.7]} 28. Kd3 {[%clk 0:02:00.8]} 28... e4+ {[%clk 0:02:36.2]} 29.
Kc4 {[%clk 0:02:00.5]} 29... Bf6 {[%clk 0:02:34.8]} 30. b4 {[%clk 0:01:55.8]}
30... g5 {[%clk 0:02:33.5]} 31. b5 {[%clk 0:01:43.4]} 31... Ne5+ {[%clk
0:02:33.8]} 32. Kb4 {[%clk 0:01:39.7]} 32... Be7+ {[%clk 0:02:33.6]} 33. Kb3
{[%clk 0:01:37.5]} 33... axb5 {[%clk 0:02:32.9]} 34. axb5 {[%clk 0:01:37.5]}
34... f4 {[%clk 0:02:31]} 35. Nc3 {[%clk 0:01:36.8]} 35... Kf5 {[%clk
0:02:27.7]} 36. Nd5 {[%clk 0:01:37]} 36... Bd6 {[%clk 0:02:26.8]} 37. c4 {[%clk
0:01:36.6]} 37... Nd3 {[%clk 0:02:26.1]} 38. Kc3 {[%clk 0:01:33.2]} 38... Be5+
{[%clk 0:02:21.8]} 39. Kb3 {[%clk 0:01:27.7]} 39... Bd6 {[%clk 0:02:19]} 40. Kc3
{[%clk 0:01:27.6]} 40... Be5+ {[%clk 0:02:18.3]} 41. Kd2 {[%clk 0:01:27.2]}
41... h5 {[%clk 0:02:18.2]} 42. c5 {[%clk 0:01:21.4]} 42... Ke6 {[%clk
0:02:04.8]} 43. Nc3 {[%clk 0:01:06.6]} 43... Bxc3+ {[%clk 0:01:59]} 44. Kxc3
{[%clk 0:01:07.5]} 44... Kd5 {[%clk 0:01:59.1]} 45. Bd8 {[%clk 0:00:48.6]} 45...
Kxc5 {[%clk 0:01:52.9]} 46. Bxg5 {[%clk 0:00:47.9]} 46... Kxb5 {[%clk
0:01:52.1]} 47. Kd4 {[%clk 0:00:48.1]} 47... Nxf2 {[%clk 0:01:51.8]} 48. Bxf4
{[%clk 0:00:47.3]} 48... Kc6 {[%clk 0:01:51.3]} 49. Ke3 {[%clk 0:00:43.1]} 49...
Nd3 {[%clk 0:01:49.5]} 50. Kxe4 {[%clk 0:00:43.4]} 50... Nxf4 {[%clk 0:01:49.1]}
51. Kxf4 {[%clk 0:00:43.7]} 51... b5 {[%clk 0:01:49.4]} 52. g4 {[%clk
0:00:40.9]} 52... hxg4 {[%clk 0:01:49.2]} 53. hxg4 {[%clk 0:00:41.8]} 53... b4
{[%clk 0:01:49.7]} 54. Ke4 {[%clk 0:00:40.5]} 54... b3 {[%clk 0:01:49]} 55. Kd3
{[%clk 0:00:39.4]} 55... Kd6 {[%clk 0:01:47.9]} 56. Kc3 {[%clk 0:00:39]} 56...
Ke5 {[%clk 0:01:48.1]} 57. Kxb3 {[%clk 0:00:38.8]} 57... Kf4 {[%clk 0:01:48.5]}
58. Kc4 {[%clk 0:00:38.6]} 58... Kxg4 {[%clk 0:01:48.5]} 1/2-1/2

[Event "*** Titled Tuesday Blitz"]
[Site "Chess.com"]
[Date "2021.03.09"]
[Round "10"]
[White "Vandros57"]
[Black "Loy_Konstantin"]
[Result "0-1"]
[WhiteElo "2216"]
[BlackElo "2362"]
[TimeControl "180+1"]
[EndTime "11:58:22 PST"]
[Termination "Loy_Konstantin won by checkmate"]

1. d4 {[%clk 0:03:00.9]} 1... Nf6 {[%clk 0:02:59.8]} 2. c4 {[%clk 0:02:59.2]}
2... c5 {[%clk 0:02:59.3]} 3. d5 {[%clk 0:02:57.8]} 3... b5 {[%clk 0:02:59.8]}
4. cxb5 {[%clk 0:02:56.8]} 4... a6 {[%clk 0:03:00.3]} 5. bxa6 {[%clk 0:02:56.4]}
5... Bxa6 {[%clk 0:03:01.2]} 6. Nc3 {[%clk 0:02:55.9]} 6... g6 {[%clk
0:03:01.6]} 7. e4 {[%clk 0:02:55.2]} 7... Bxf1 {[%clk 0:03:00.8]} 8. Kxf1 {[%clk
0:02:55]} 8... d6 {[%clk 0:03:01.3]} 9. Nf3 {[%clk 0:02:54.8]} 9... Bg7 {[%clk
0:03:01.8]} 10. g3 {[%clk 0:02:54.9]} 10... Nbd7 {[%clk 0:03:01.7]} 11. Kg2
{[%clk 0:02:54.6]} 11... O-O {[%clk 0:03:01.3]} 12. h3 {[%clk 0:02:52.3]} 12...
Ra6 {[%clk 0:02:58.8]} 13. Qe2 {[%clk 0:02:47.5]} 13... Qa8 {[%clk 0:02:58]} 14.
a4 {[%clk 0:02:36.7]} 14... e6 {[%clk 0:02:52.1]} 15. Rd1 {[%clk 0:02:33.1]}
15... exd5 {[%clk 0:02:48.9]} 16. Nxd5 {[%clk 0:02:22.2]} 16... Nxd5 {[%clk
0:02:47.6]} 17. Rxd5 {[%clk 0:02:19.8]} 17... Nf6 {[%clk 0:02:42]} 18. Rd3
{[%clk 0:01:59.3]} 18... Nxe4 {[%clk 0:02:41.5]} 19. Rda3 {[%clk 0:01:39.6]}
19... d5 {[%clk 0:02:29.8]} 20. a5 {[%clk 0:01:36.8]} 20... Re8 {[%clk
0:02:26.7]} 21. Qc2 {[%clk 0:01:34.5]} 21... d4 {[%clk 0:02:14.7]} 22. Bd2
{[%clk 0:01:22.5]} 22... c4 {[%clk 0:01:55.2]} 23. Bf4 {[%clk 0:01:05.2]} 23...
Qd5 {[%clk 0:01:36]} 24. Ra4 {[%clk 0:01:00]} 24... Rc8 {[%clk 0:01:32.6]} 25.
b4 {[%clk 0:00:52.9]} 25... d3 {[%clk 0:01:26.8]} 26. Qa2 {[%clk 0:00:49.1]}
26... Nc3 {[%clk 0:01:17.1]} 27. Qa3 {[%clk 0:00:45.9]} 27... Nxa4 {[%clk
0:01:16.7]} 28. Qxa4 {[%clk 0:00:44.8]} 28... Bxa1 {[%clk 0:01:14.9]} 29. Qxa1
{[%clk 0:00:44.4]} 29... c3 {[%clk 0:01:14.9]} 30. Be5 {[%clk 0:00:22.9]} 30...
d2 {[%clk 0:01:06.8]} 31. Qd1 {[%clk 0:00:12.5]} 31... c2 {[%clk 0:01:03.5]} 32.
Qe2 {[%clk 0:00:12.5]} 32... d1=Q {[%clk 0:01:01.2]} 33. Qxa6 {[%clk 0:00:11.5]}
33... Q5xf3+ {[%clk 0:01:01]} 34. Kh2 {[%clk 0:00:10.6]} 34... Qdh1# {[%clk
0:01:01.2]} 0-1

[Event "*** Titled Tuesday Blitz"]
[Site "Chess.com"]
[Date "2021.03.09"]
[Round "10"]
[White "AsaHoffmann"]
[Black "atwalcb"]
[Result "0-1"]
[WhiteElo "2419"]
[BlackElo "2542"]
[TimeControl "180+1"]
[EndTime "11:58:24 PST"]
[Termination "atwalcb won by resignation"]

1. d4 {[%clk 0:02:55.7]} 1... d5 {[%clk 0:02:58.4]} 2. Bg5 {[%clk 0:02:51.3]}
2... Nf6 {[%clk 0:02:52.5]} 3. Nd2 {[%clk 0:02:50.3]} 3... e6 {[%clk 0:02:50]}
4. e3 {[%clk 0:02:50]} 4... Be7 {[%clk 0:02:49.9]} 5. Bd3 {[%clk 0:02:49.8]}
5... O-O {[%clk 0:02:49.6]} 6. f4 {[%clk 0:02:49.7]} 6... c5 {[%clk 0:02:49]} 7.
c3 {[%clk 0:02:49.8]} 7... Nc6 {[%clk 0:02:43.2]} 8. Ngf3 {[%clk 0:02:49.5]}
8... a6 {[%clk 0:02:43.5]} 9. O-O {[%clk 0:02:49.1]} 9... b5 {[%clk 0:02:43.7]}
10. Ne5 {[%clk 0:02:48.4]} 10... Bb7 {[%clk 0:02:41]} 11. Qf3 {[%clk 0:02:46.4]}
11... h6 {[%clk 0:02:25]} 12. Bh4 {[%clk 0:02:42.8]} 12... Nd7 {[%clk
0:02:23.4]} 13. Bg3 {[%clk 0:02:37.4]} 13... f5 {[%clk 0:02:20.9]} 14. Kh1
{[%clk 0:02:24.2]} 14... c4 {[%clk 0:02:17.5]} 15. Bc2 {[%clk 0:02:23]} 15...
Nf6 {[%clk 0:02:17.7]} 16. Bh4 {[%clk 0:02:21.2]} 16... Ne4 {[%clk 0:02:17.4]}
17. Bxe7 {[%clk 0:02:16.5]} 17... Nxe7 {[%clk 0:02:16.8]} 18. Nxe4 {[%clk
0:02:14.7]} 18... dxe4 {[%clk 0:02:10.7]} 19. Qh3 {[%clk 0:02:13.8]} 19... Nc6
{[%clk 0:02:08.8]} 20. g4 {[%clk 0:02:12.6]} 20... Nxe5 {[%clk 0:02:08.3]} 21.
fxe5 {[%clk 0:02:11.9]} 21... Qg5 {[%clk 0:02:05]} 22. gxf5 {[%clk 0:02:08.5]}
22... exf5 {[%clk 0:02:00]} 23. Rg1 {[%clk 0:02:05.5]} 23... Qe7 {[%clk
0:01:56]} 24. Raf1 {[%clk 0:02:04.6]} 24... f4 {[%clk 0:01:50.2]} 25. Qg4 {[%clk
0:01:52.1]} 25... Bd5 {[%clk 0:01:02.7]} 26. h3 {[%clk 0:01:25]} 26... fxe3
{[%clk 0:00:54.2]} 27. Bxe4 {[%clk 0:01:23.1]} 27... Qb7 {[%clk 0:00:45.7]} 28.
Qxg7+ {[%clk 0:01:04.7]} 28... Qxg7 {[%clk 0:00:44.1]} 29. Bxd5+ {[%clk
0:01:04.4]} 29... Kh8 {[%clk 0:00:41.4]} 30. Rxg7 {[%clk 0:00:57.3]} 30... Rxf1+
{[%clk 0:00:41.3]} 0-1

[Event "*** Titled Tuesday Blitz"]
[Site "Chess.com"]
[Date "2021.03.09"]
[Round "10"]
[White "Mbneu"]
[Black "LenkaPtacnikova"]
[Result "1-0"]
[WhiteElo "2283"]
[BlackElo "2127"]
[TimeControl "180+1"]
[EndTime "11:58:24 PST"]
[Termination "Mbneu won by resignation"]

1. d4 {[%clk 0:03:00.9]} 1... Nf6 {[%clk 0:02:58.8]} 2. c4 {[%clk 0:03:00]} 2...
e6 {[%clk 0:02:58.8]} 3. Nc3 {[%clk 0:03:00.1]} 3... Bb4 {[%clk 0:02:59.1]} 4.
Bg5 {[%clk 0:03:00.7]} 4... h6 {[%clk 0:02:57.4]} 5. Bh4 {[%clk 0:03:00.2]} 5...
g5 {[%clk 0:02:56.6]} 6. Bg3 {[%clk 0:02:59.7]} 6... Ne4 {[%clk 0:02:57.1]} 7.
Qc2 {[%clk 0:02:50.3]} 7... d5 {[%clk 0:02:56.2]} 8. e3 {[%clk 0:02:36.6]} 8...
c6 {[%clk 0:02:32.3]} 9. Bd3 {[%clk 0:02:35.6]} 9... Nxc3 {[%clk 0:02:28.7]} 10.
bxc3 {[%clk 0:02:34.4]} 10... Be7 {[%clk 0:02:26.2]} 11. Ne2 {[%clk 0:02:31.7]}
11... Nd7 {[%clk 0:02:21.9]} 12. O-O {[%clk 0:02:27.3]} 12... f5 {[%clk
0:02:21.5]} 13. f3 {[%clk 0:02:23.9]} 13... Nf6 {[%clk 0:02:21.4]} 14. Be5
{[%clk 0:02:21.4]} 14... O-O {[%clk 0:02:19.8]} 15. e4 {[%clk 0:02:04.2]} 15...
dxe4 {[%clk 0:02:16.8]} 16. fxe4 {[%clk 0:02:03.6]} 16... f4 {[%clk 0:02:13.2]}
17. g3 {[%clk 0:02:03.1]} 17... Ng4 {[%clk 0:02:11.3]} 18. gxf4 {[%clk
0:02:01.6]} 18... Ne3 {[%clk 0:02:07.2]} 19. Qd2 {[%clk 0:01:58.5]} 19... Nxf1
{[%clk 0:02:07.2]} 20. Rxf1 {[%clk 0:01:57.4]} 20... gxf4 {[%clk 0:02:06.9]} 21.
Bxf4 {[%clk 0:01:56.2]} 21... Bg5 {[%clk 0:02:05.9]} 22. Kh1 {[%clk 0:01:54.2]}
22... Bd7 {[%clk 0:01:46.7]} 23. Bxg5 {[%clk 0:01:50.1]} 23... Rxf1+ {[%clk
0:01:44.9]} 24. Kg2 {[%clk 0:01:46.5]} 24... Qxg5+ {[%clk 0:01:28.9]} 25. Qxg5+
{[%clk 0:01:45.9]} 25... hxg5 {[%clk 0:01:29.2]} 26. Kxf1 {[%clk 0:01:46.4]}
26... Rf8+ {[%clk 0:01:24.9]} 27. Kg2 {[%clk 0:01:44.8]} 27... c5 {[%clk
0:01:18.4]} 28. Ng1 {[%clk 0:01:30.2]} 28... Kg7 {[%clk 0:01:14.8]} 29. Nf3
{[%clk 0:01:28.7]} 29... Kh6 {[%clk 0:01:14.4]} 30. Ne5 {[%clk 0:01:23.4]} 30...
Ba4 {[%clk 0:01:12.4]} 31. Ng4+ {[%clk 0:01:16.4]} 31... Kh5 {[%clk 0:01:10.3]}
32. Be2 {[%clk 0:01:15.4]} 32... Kh4 {[%clk 0:01:10.4]} 33. Ne5 {[%clk
0:01:12.1]} 33... Be8 {[%clk 0:00:44.1]} 34. Bg4 {[%clk 0:01:09.7]} 34... Rf4
{[%clk 0:00:38.8]} 35. h3 {[%clk 0:01:09]} 35... Bh5 {[%clk 0:00:24.9]} 36. Nf3+
{[%clk 0:01:06.4]} 36... Rxf3 {[%clk 0:00:24.7]} 37. Kxf3 {[%clk 0:01:06.9]}
37... Bf7 {[%clk 0:00:18.3]} 38. d5 {[%clk 0:01:02.5]} 1-0

[Event "*** Titled Tuesday Blitz"]
[Site "Chess.com"]
[Date "2021.03.09"]
[Round "10"]
[White "Volodar_Murzin"]
[Black "pastouche06"]
[Result "1-0"]
[WhiteElo "2669"]
[BlackElo "2562"]
[TimeControl "180+1"]
[EndTime "11:58:27 PST"]
[Termination "Volodar_Murzin won by resignation"]

1. e4 {[%clk 0:03:00.2]} 1... c6 {[%clk 0:02:58.4]} 2. d4 {[%clk 0:02:59.9]}
2... d5 {[%clk 0:02:59]} 3. f3 {[%clk 0:02:58.5]} 3... Qb6 {[%clk 0:02:56.4]} 4.
Nc3 {[%clk 0:02:57.7]} 4... dxe4 {[%clk 0:02:56.5]} 5. fxe4 {[%clk 0:02:56.9]}
5... e5 {[%clk 0:02:56.3]} 6. Nf3 {[%clk 0:02:56.1]} 6... exd4 {[%clk
0:02:55.8]} 7. Nxd4 {[%clk 0:02:52]} 7... Bc5 {[%clk 0:02:55]} 8. Na4 {[%clk
0:02:50.5]} 8... Qa5+ {[%clk 0:02:49.3]} 9. c3 {[%clk 0:02:50.4]} 9... Be7
{[%clk 0:02:48.1]} 10. Bf4 {[%clk 0:02:33.4]} 10... Nf6 {[%clk 0:02:23.8]} 11.
Bd3 {[%clk 0:02:13.2]} 11... Bg4 {[%clk 0:02:04.6]} 12. Qb3 {[%clk 0:01:57.7]}
12... b5 {[%clk 0:01:08.8]} 13. Bxb8 {[%clk 0:01:54.2]} 13... bxa4 {[%clk
0:01:09]} 14. Qb7 {[%clk 0:01:51.7]} 14... O-O {[%clk 0:01:07.5]} 15. Qxa8
{[%clk 0:01:40.3]} 15... Qb6 {[%clk 0:01:03.4]} 16. Qxa7 {[%clk 0:01:34.1]}
16... Rxb8 {[%clk 0:00:52.4]} 17. Qxe7 {[%clk 0:01:29.9]} 17... Re8 {[%clk
0:00:46]} 18. Qb4 {[%clk 0:01:21.6]} 18... Qa7 {[%clk 0:00:46.3]} 19. O-O {[%clk
0:01:13.2]} 19... c5 {[%clk 0:00:45.8]} 20. Nc6 {[%clk 0:00:55.3]} 20... Qc7
{[%clk 0:00:40.6]} 21. Qxa4 {[%clk 0:00:43.8]} 21... Bd7 {[%clk 0:00:37.9]} 22.
Bb5 {[%clk 0:00:36.4]} 22... Ng4 {[%clk 0:00:37.4]} 23. g3 {[%clk 0:00:34.3]}
23... h5 {[%clk 0:00:29]} 24. Qa7 {[%clk 0:00:24]} 1-0

[Event "*** Titled Tuesday Blitz"]
[Site "Chess.com"]
[Date "2021.03.09"]
[Round "10"]
[White "K_A_S_T_O_R"]
[Black "hypert"]
[Result "1-0"]
[WhiteElo "2781"]
[BlackElo "2511"]
[TimeControl "180+1"]
[EndTime "11:58:30 PST"]
[Termination "K_A_S_T_O_R won by resignation"]

1. e4 {[%clk 0:03:00.9]} 1... c5 {[%clk 0:02:59.2]} 2. Nf3 {[%clk 0:03:00.4]}
2... e6 {[%clk 0:02:59.8]} 3. d4 {[%clk 0:03:00.9]} 3... cxd4 {[%clk 0:03:00.6]}
4. Nxd4 {[%clk 0:03:01.3]} 4... Nc6 {[%clk 0:03:01.2]} 5. Nb5 {[%clk 0:03:00.8]}
5... d6 {[%clk 0:02:56.7]} 6. c4 {[%clk 0:03:00.9]} 6... Nf6 {[%clk 0:02:56.4]}
7. N1c3 {[%clk 0:03:01.1]} 7... a6 {[%clk 0:02:55.5]} 8. Na3 {[%clk 0:03:00.8]}
8... Qa5 {[%clk 0:02:55.9]} 9. Bd3 {[%clk 0:02:56.1]} 9... Be7 {[%clk
0:02:55.2]} 10. O-O {[%clk 0:02:55.6]} 10... O-O {[%clk 0:02:55.2]} 11. Nc2
{[%clk 0:02:54.9]} 11... Rd8 {[%clk 0:02:43.2]} 12. Ne3 {[%clk 0:02:50.7]} 12...
Bd7 {[%clk 0:02:06.8]} 13. Bd2 {[%clk 0:02:46.1]} 13... Qe5 {[%clk 0:01:57.3]}
14. Kh1 {[%clk 0:02:43.1]} 14... Qd4 {[%clk 0:01:56.3]} 15. Qe2 {[%clk 0:02:34]}
15... Ne5 {[%clk 0:01:40.7]} 16. Bc2 {[%clk 0:02:32.8]} 16... Rac8 {[%clk
0:01:39.9]} 17. b3 {[%clk 0:02:30.4]} 17... Ng6 {[%clk 0:01:36.4]} 18. f4 {[%clk
0:02:27.2]} 18... Bc6 {[%clk 0:01:35.9]} 19. Ned1 {[%clk 0:02:23.1]} 19... b5
{[%clk 0:01:29.4]} 20. Be3 {[%clk 0:02:22.7]} 20... Nxf4 {[%clk 0:01:22.8]} 21.
Rxf4 {[%clk 0:02:14.5]} 21... Qe5 {[%clk 0:01:22.5]} 22. Rc1 {[%clk 0:02:06.9]}
22... b4 {[%clk 0:01:19.4]} 23. Nb1 {[%clk 0:02:06.7]} 23... Nxe4 {[%clk
0:01:11.3]} 24. Nf2 {[%clk 0:02:03.6]} 24... Nxf2+ {[%clk 0:00:53.9]} 25. Rxf2
{[%clk 0:02:01.5]} 25... Bf6 {[%clk 0:00:46.9]} 26. Rcf1 {[%clk 0:01:59.6]}
26... d5 {[%clk 0:00:45.5]} 27. cxd5 {[%clk 0:01:55.3]} 27... Qxd5 {[%clk
0:00:30.4]} 28. Qg4 {[%clk 0:01:50.2]} 28... h5 {[%clk 0:00:23.9]} 29. Qh3
{[%clk 0:01:43]} 29... Bb5 {[%clk 0:00:20.2]} 30. Re1 {[%clk 0:01:39.4]} 30...
Qe5 {[%clk 0:00:17.3]} 31. Qg3 {[%clk 0:01:31.4]} 31... h4 {[%clk 0:00:17.1]}
32. Qxe5 {[%clk 0:01:30.6]} 32... Bxe5 {[%clk 0:00:18]} 33. Bg5 {[%clk 0:01:25]}
33... f6 {[%clk 0:00:17.4]} 34. Bxh4 {[%clk 0:01:25.1]} 34... Rd6 {[%clk
0:00:15.3]} 35. Bg3 {[%clk 0:01:23.1]} 35... Bxg3 {[%clk 0:00:14.9]} 36. hxg3
{[%clk 0:01:22.7]} 36... e5 {[%clk 0:00:15.8]} 37. Bf5 {[%clk 0:01:20.6]} 37...
Rcd8 {[%clk 0:00:16.4]} 38. Kh2 {[%clk 0:01:19.2]} 38... Kf7 {[%clk 0:00:16.9]}
39. g4 {[%clk 0:01:18.8]} 39... g6 {[%clk 0:00:17.4]} 40. Be4 {[%clk 0:01:18.7]}
40... Kg7 {[%clk 0:00:18]} 41. Rc2 {[%clk 0:01:15.9]} 41... Bd7 {[%clk
0:00:17.1]} 42. Bf3 {[%clk 0:01:14.6]} 42... Kh6 {[%clk 0:00:17.7]} 43. Nd2
{[%clk 0:01:12.8]} 43... Kg5 {[%clk 0:00:17.9]} 44. Ne4+ {[%clk 0:01:10.9]} 1-0

[Event "*** Titled Tuesday Blitz"]
[Site "Chess.com"]
[Date "2021.03.09"]
[Round "10"]
[White "m_ezat"]
[Black "Harry_Rakkel"]
[Result "1-0"]
[WhiteElo "2561"]
[BlackElo "2632"]
[TimeControl "180+1"]
[EndTime "11:58:31 PST"]
[Termination "m_ezat won by resignation"]

1. d4 {[%clk 0:03:00.9]} 1... Nf6 {[%clk 0:02:59.1]} 2. c4 {[%clk 0:03:01]} 2...
e6 {[%clk 0:02:58.9]} 3. Nc3 {[%clk 0:03:01.1]} 3... Bb4 {[%clk 0:02:58.5]} 4.
e3 {[%clk 0:02:59.7]} 4... O-O {[%clk 0:02:57.2]} 5. a3 {[%clk 0:03:00.2]} 5...
Bxc3+ {[%clk 0:02:55.2]} 6. bxc3 {[%clk 0:03:00.8]} 6... d6 {[%clk 0:02:53.1]}
7. Bd3 {[%clk 0:03:00.2]} 7... c5 {[%clk 0:02:51.1]} 8. f3 {[%clk 0:03:00.4]}
8... Nc6 {[%clk 0:02:49.1]} 9. Ne2 {[%clk 0:03:00.5]} 9... b6 {[%clk 0:02:46.1]}
10. O-O {[%clk 0:03:00.4]} 10... Ba6 {[%clk 0:02:45.1]} 11. e4 {[%clk 0:03:01]}
11... Ne8 {[%clk 0:02:41.4]} 12. f4 {[%clk 0:02:43.2]} 12... Na5 {[%clk
0:02:37.5]} 13. f5 {[%clk 0:02:43.1]} 13... exf5 {[%clk 0:02:19.3]} 14. exf5
{[%clk 0:02:42.2]} 14... Bxc4 {[%clk 0:01:53]} 15. f6 {[%clk 0:02:41.2]} 15...
Nxf6 {[%clk 0:01:40.4]} 16. Bg5 {[%clk 0:02:38.8]} 16... Qe7 {[%clk 0:01:32]}
17. Ng3 {[%clk 0:02:16]} 17... Rae8 {[%clk 0:01:18]} 18. Nf5 {[%clk 0:00:56.2]}
18... Qe6 {[%clk 0:01:09.1]} 19. Nxg7 {[%clk 0:00:53.9]} 19... Qg4 {[%clk
0:00:50.3]} 20. Bxf6 {[%clk 0:00:43.9]} 20... Qxd1 {[%clk 0:00:50.1]} 21. Raxd1
{[%clk 0:00:42.9]} 21... Re3 {[%clk 0:00:50.6]} 22. Bxc4 {[%clk 0:00:38.2]}
22... Nxc4 {[%clk 0:00:51.5]} 23. Nf5 {[%clk 0:00:38.1]} 23... h5 {[%clk
0:00:48.6]} 24. Rf4 {[%clk 0:00:23.6]} 24... Rxc3 {[%clk 0:00:36.6]} 25. Rh4
{[%clk 0:00:18.8]} 25... Kh7 {[%clk 0:00:36.5]} 26. Ne7 {[%clk 0:00:17.8]} 26...
Kh6 {[%clk 0:00:36.3]} 27. g4 {[%clk 0:00:17.4]} 1-0

[Event "*** Titled Tuesday Blitz"]
[Site "Chess.com"]
[Date "2021.03.09"]
[Round "10"]
[White "Koalaskakistis"]
[Black "VladimirBugayev"]
[Result "0-1"]
[WhiteElo "2503"]
[BlackElo "2271"]
[TimeControl "180+1"]
[EndTime "11:58:33 PST"]
[Termination "VladimirBugayev won by checkmate"]

1. d4 {[%clk 0:03:00.9]} 1... Nf6 {[%clk 0:02:59.6]} 2. Bf4 {[%clk 0:02:57.8]}
2... g6 {[%clk 0:02:58.6]} 3. Nf3 {[%clk 0:02:56.8]} 3... d6 {[%clk 0:02:58]} 4.
Nbd2 {[%clk 0:02:57.7]} 4... d5 {[%clk 0:02:53.3]} 5. e3 {[%clk 0:02:53.7]} 5...
Bg4 {[%clk 0:02:45.4]} 6. Be2 {[%clk 0:02:52.8]} 6... Bxf3 {[%clk 0:02:39.7]} 7.
Nxf3 {[%clk 0:02:51]} 7... c6 {[%clk 0:02:39.4]} 8. h4 {[%clk 0:02:51.2]} 8...
h6 {[%clk 0:02:33.5]} 9. Ne5 {[%clk 0:02:47.3]} 9... Bg7 {[%clk 0:02:33.5]} 10.
g4 {[%clk 0:02:46.4]} 10... Nfd7 {[%clk 0:02:32.4]} 11. Nxd7 {[%clk 0:02:45.7]}
11... Nxd7 {[%clk 0:02:30.9]} 12. c4 {[%clk 0:02:43.9]} 12... Qa5+ {[%clk
0:02:22.6]} 13. Qd2 {[%clk 0:02:42.5]} 13... Qxd2+ {[%clk 0:02:22.8]} 14. Kxd2
{[%clk 0:02:41.9]} 14... dxc4 {[%clk 0:02:08.3]} 15. Bxc4 {[%clk 0:02:41.1]}
15... e5 {[%clk 0:02:08.4]} 16. dxe5 {[%clk 0:02:39.3]} 16... Nxe5 {[%clk
0:02:06.8]} 17. Be2 {[%clk 0:02:27.2]} 17... O-O-O+ {[%clk 0:02:04.1]} 18. Kc2
{[%clk 0:02:26.4]} 18... Nd7 {[%clk 0:01:42]} 19. Rad1 {[%clk 0:02:23.8]} 19...
Nb6 {[%clk 0:01:41.9]} 20. e4 {[%clk 0:02:14.6]} 20... Bd4 {[%clk 0:01:30]} 21.
f3 {[%clk 0:02:12.2]} 21... c5 {[%clk 0:01:30]} 22. g5 {[%clk 0:02:08.3]} 22...
h5 {[%clk 0:01:26.2]} 23. Bf1 {[%clk 0:02:08]} 23... Nd7 {[%clk 0:01:17.2]} 24.
Bh3 {[%clk 0:02:06.5]} 24... b6 {[%clk 0:01:11.1]} 25. b4 {[%clk 0:02:04.6]}
25... Kb7 {[%clk 0:01:11]} 26. bxc5 {[%clk 0:02:04.1]} 26... bxc5 {[%clk
0:01:10.5]} 27. Rb1+ {[%clk 0:02:02.7]} 27... Kc6 {[%clk 0:01:10]} 28. Bd2
{[%clk 0:01:55.1]} 28... Ne5 {[%clk 0:01:05.7]} 29. f4 {[%clk 0:01:54.5]} 29...
Nc4 {[%clk 0:01:05.3]} 30. Bc1 {[%clk 0:01:51.4]} 30... Rhe8 {[%clk 0:00:54.7]}
31. e5 {[%clk 0:01:39.4]} 31... Rb8 {[%clk 0:00:41.9]} 32. Bg2+ {[%clk
0:01:34.5]} 32... Kc7 {[%clk 0:00:41.7]} 33. Rxb8 {[%clk 0:01:21.8]} 33... Rxb8
{[%clk 0:00:41.1]} 34. Bd5 {[%clk 0:01:22]} 34... Ne3+ {[%clk 0:00:38.8]} 35.
Kd3 {[%clk 0:01:15.7]} 35... Nxd5 {[%clk 0:00:36.8]} 36. Rf1 {[%clk 0:01:09]}
36... Nb4+ {[%clk 0:00:36.4]} 37. Ke4 {[%clk 0:01:08.8]} 37... Nxa2 {[%clk
0:00:36.4]} 38. Ba3 {[%clk 0:01:07.6]} 38... Nc3+ {[%clk 0:00:36.2]} 39. Kd3
{[%clk 0:01:06.5]} 39... Rb3 {[%clk 0:00:31.9]} 40. Bxc5 {[%clk 0:01:05.1]}
40... Bxc5 {[%clk 0:00:30.1]} 41. Kc4 {[%clk 0:01:06]} 41... Rb1 {[%clk
0:00:27]} 42. Rf3 {[%clk 0:01:01.9]} 42... Na4 {[%clk 0:00:26.4]} 43. f5 {[%clk
0:01:01.4]} 43... Rb4+ {[%clk 0:00:25.9]} 44. Kd5 {[%clk 0:00:58.4]} 44... Rd4#
{[%clk 0:00:25.8]} 0-1